Cogmind - Beta 14 @@@ ROGUE MODE // 2024.12.03 @ 21:41:20 Player: GR4C3 Result: Destroyed by X-57 Shotgunner with Shotgun Performance ------------- Evolutions (2) 1000 Regions Visited (3) 600 Robots Destroyed (29) 145 Value Destroyed (721) 721 Prototype IDs (5) 100 Alien Tech Used (0) 0 Bonus (0) 0 TOTAL SCORE: 2566 Bonus ------- None Cogmind --------- Core Integrity 0/550 Matter 27/300 Energy 91/100 System Corruption 0% Temperature Cool (0) Movement Core (50) Location -8/Materials Parts ------- > --- POWER (2) -------- (None) > --- PROPULSION (3) --- (None) > --- UTILITY (3) ------ Improved Signal Interpreter > --- WEAPON (3) ------- (None) > --- INVENTORY (5) ---- Advanced Visual Processing Unit Seismic Detector Peak State ------------ > --- POWER ------------ Light Nuclear Core Improved Deuterium Engine > --- PROPULSION ------- Aluminum Leg Aluminum Leg Improved Carbon-fiber Leg > --- UTILITY ---------- Improved Cooling System Medium Storage Unit Improved Signal Interpreter > --- WEAPON ----------- Heavy Particle Gun EM Pulse Cannon Flak Cannon > --- INVENTORY -------- Light Ion Engine Advanced Visual Processing Unit Seismic Detector Shock Rifle Small Laser Enhanced Autogun Enhanced Autogun Enhanced Autogun Grenade Launcher [Rating: 33] Favorites ----------- Power Ion Engine Engine Ion Engine Power Core Light Nuclear Core Propulsion Aluminum Leg Leg Aluminum Leg Utility Sensor Array Device Sensor Array Storage Medium Storage Unit Processor Improved Signal Interpreter Weapon Small Laser Energy Gun Small Laser Energy Cannon EM Pulse Cannon Ballistic Gun Light Assault Rifle Ballistic Cannon Flak Cannon Launcher Grenade Launcher Build | -11 -10 -10 -8 ------- Run | Yrd Mat Sub Mat Slots Evolved 4 | . . . 4 Power 1 | . . . 1 Propulsion 1 | . . . 1 Utility 1 | . . . 1 Weapon 1 | . . . 1 Parts Attached 44 | 8 9 . 27 Power 8 | 1 . . 7 Engine 6 | 1 . . 5 Core 2 | . . . 2 Reactor . | . . . . Propulsion 5 | 2 . . 3 Treads . | . . . . Leg 5 | 2 . . 3 Wheel . | . . . . Hover . | . . . . Flight . | . . . . Utility 8 | 2 2 . 4 Device 5 | 2 1 . 2 Storage 1 | . . . 1 Processor 2 | . 1 . 1 Hackware . | . . . . Protection . | . . . . Artifact . | . . . . Weapon 23 | 3 7 . 13 Energy Gun 7 | 2 . . 5 Energy Cannon 1 | . . . 1 Ballistic Gun 7 | 1 3 . 3 Ballistic Cannon 2 | . . . 2 Launcher 6 | . 4 . 2 Special Weapon . | . . . . Impact Weapon . | . . . . Slashing Weapon . | . . . . Piercing Weapon . | . . . . Special Melee Weapon . | . . . . Unidentified Prototypes 3 | . . . 3 Parts Lost 18 | . . . 18 Power 3 | . . . 3 Propulsion 5 | . . . 5 Utility 3 | . . . 3 Weapon 7 | . . . 7 Highest Loss Streak 14 | . . . 14 To Critical Strikes . | . . . . Average Slot Usage (%) 94 | . 100 100 88 Engine 10 | . 14 14 7 Core 3 | . . . 7 Leg 25 | . 28 28 22 Device 18 | . 23 28 10 Storage 2 | . . . 6 Processor 5 | . 4 . 8 Energy Gun 11 | . 14 14 8 Energy Cannon 2 | . . . 4 Ballistic Gun 6 | . 11 . 6 Ballistic Cannon 1 | . . . 3 Launcher 5 | . 2 14 2 Peak Build Rating 33 | 9 10 9 33 Average Rating 14 | 4 9 9 22 On Entrance 6 | . 9 9 9 Naked Turns . | . . . . Heaviest Build 42 | 9 11 11 42 Greatest Support 38 | 20 20 20 38 Greatest Overweight (x) 1 | 1 . . 1 Average Overweight (x) . | . . . . Largest Inventory Capacity 10 | 5 5 5 10 Average Capacity 6 | 5 5 5 8 Most Carried 10 | 5 5 5 10 Average Carried 5 | 2 4 5 6 Final Capacity 5 | 5 5 5 5 Final Carried 5 | 2 5 5 2 Class Distribution -------------------- 63% | Mutant 23% | Skirmisher 8% | Scavenger-Gunner Dominant Class ---------------- Mutant | -10/Materials Mutant | -10/Subcaves Skirmisher | -8/Materials Resources | -11 -10 -10 -8 ----------- Run | Yrd Mat Sub Mat Matter Collected 662 | 251 6 25 380 Remotely . | . . . . Salvage Created 634 | 42 73 47 472 Parts 51 | 8 16 3 24 Haulers Intercepted . | . . . . Recyclers Shooed 1 | . . . 1 Parts Field Recycled . | . . . . Retrieved Matter . | . . . . Parts Self-Destructed 7 | . . 7 . Prevented . | . . . . Kills | -11 -10 -10 -8 ------- Run | Yrd Mat Sub Mat Combat Hostiles Destroyed 22 | . 9 2 11 Guns 7 | . 3 . 4 Cannons 5 | . . . 5 AOE 10 | . 6 2 2 Classes Destroyed 9 | 1 3 1 4 Worker 1 | . 1 . . Tunneler 3 | 3 . . . Operator 1 | . . . 1 Watcher 2 | . 1 . 1 Swarmer 12 | . 9 . 3 Grunt 4 | . . . 4 Sentry 2 | . . . 2 Specialist 2 | . . . 2 Subdweller 2 | . . 2 . Best Kill Streak 4 | 3 4 2 4 Combat Bots Only 4 | . 3 2 4 Max Kills in Single Turn 2 | 1 2 1 2 Gunslinging . | . . . . Exploded 2 | . 2 1 1 Melee . | . . . . Uniques/NPCs Destroyed . | . . . . Combat | -11 -10 -10 -8 -------- Run | Yrd Mat Sub Mat Hostile Shots Fired 280 | . 40 2 238 Missed 113 | . 19 . 94 Damage Taken 2326 | . 176 43 2107 Core 598 | . 22 20 556 Absorbed by Shields . | . . . . Core Remaining (%) 91 | 100 . 83 . Volleys Fired 83 | 4 20 2 57 Largest 3 | 2 2 2 3 Hottest 162 | 60 70 70 162 Shots Fired 169 | 8 38 4 119 Gun 113 | 8 30 2 73 Cannon 40 | . . . 40 Launcher 16 | . 8 2 6 Special . | . . . . Kinetic 72 | 4 12 . 56 Thermal 65 | 4 18 2 41 Explosive 16 | . 8 2 6 Electromagnetic 16 | . . . 16 Robot Hit Streak 14 | 6 2 2 14 Robot Miss Streak 5 | . 5 1 4 Penetration Max . | . . . . Secondary Targets . | . . . . Shots Hit Robots 107 | 6 12 3 86 Core Hits 71 | 3 16 2 50 Critical Kills . | . . . . Critical Parts Destroyed . | . . . . Critical Strikes 1 | . . . 1 Burn 1 | . . . 1 Melee Attacks . | . . . . Impact . | . . . . Slashing . | . . . . Piercing . | . . . . Sneak Attacks . | . . . . Combat Hostiles . | . . . . Follow-up Attacks . | . . . . Damage Inflicted 2576 | 65 659 111 1741 Guns 795 | 65 101 . 629 Cannons 807 | . . . 807 Explosions 964 | . 558 111 295 Melee . | . . . . Ramming 10 | . . . 10 Kinetic 737 | 20 51 . 666 Thermal 505 | 45 50 . 410 Explosive 964 | . 558 111 295 Electromagnetic 360 | . . . 360 Impact . | . . . . Slashing . | . . . . Piercing . | . . . . Highest Corruption . | . . . . Average Corruption . | . . . . Corruption Purged . | . . . . Corruption Blocked . | . . . . Overload Shots . | . . . . Overflow Damage 16 | . 13 . 3 Projectiles 3 | . . . 3 Explosions 13 | . 13 . . Melee . | . . . . Knockbacks 21 | . . . 21 Impact . | . . . . Kinetic 21 | . . . 21 Secondary . | . . . . Self-Inflicted Damage 87 | . 15 . 72 Shots 5 | . 1 . 4 Rammed . | . . . . Targets Rammed 2 | . . . 2 Kicked 2 | . . . 2 Crushed . | . . . . Highest Temperature 285 | 20 40 . 285 Average Temperature 62 | 15 15 . 79 Received Heat Transfer 615 | . . 12 603 Siege Activations . | . . . . Robots Corrupted . | . . . . Combat Hostiles . | . . . . Parts Fried 1 | . . . 1 Impact Corruptions . | . . . . Robots Melted . | . . . . Combat Hostiles . | . . . . Parts Melted . | . . . . Heat Transferred 1143 | 100 125 . 918 Parts Sabotaged . | . . . . Parts Stolen . | . . . . Parts Stripped . | . . . . Power Chain Reactions . | . . . . Alert | -11 -10 -10 -8 ------- Run | Yrd Mat Sub Mat Peak Influence 315 | 15 315 . 230 Initial 31 | . 9 . 31 Average 98 | 5 74 . 125 Maximum Alert Level 1 | . 1 . 1 Low Security (%) 78 | 100 85 . 70 Level 1 21 | . 14 . 29 Level 2 . | . . . . Level 3 . | . . . . Level 4 . | . . . . Level 5 . | . . . . High Security . | . . . . Max Security . | . . . . Squads Dispatched 8 | . 1 . 7 Investigation . | . . . . Extermination . | . . . . Reinforcement 6 | . 1 . 5 Assault . | . . . . Garrison 2 | . . . 2 Intercept . | . . . . Searches Triggered . | . . . . Construction Impeded 1 | . . . 1 Haulers Reinforced . | . . . . Active Scanning Responses . | . . . . Cargo Convoy Interrupts . | . . . . Stealth | -11 -10 -10 -8 --------- Run | Yrd Mat Sub Mat Distress Signals 1 | . 1 . . Communications Jammed . | . . . . Distress Signals . | . . . . Times Spotted 42 | . 16 2 24 Peak Tracking Total 6 | . 6 2 6 Tactical Retreats 3 | . . . 3 Traps | -11 -10 -10 -8 ------- Run | Yrd Mat Sub Mat Traps Triggered 1 | . . . 1 Indirectly . | . . . . Trap Hack Attempts . | . . . . Triggered . | . . . . Disarmed . | . . . . Reprogrammed . | . . . . Reused . | . . . . Traps Extracted . | . . . . Installed . | . . . . Triggered . | . . . . Machines | -11 -10 -10 -8 ---------- Run | Yrd Mat Sub Mat Machines Disabled 4 | . 1 . 3 Max in Single Turn 1 | . 1 . 1 Machines Repaired . | . . . . Machines Dismantled . | . . . . Machines Sabotaged . | . . . . Overloaded Fab Kills . | . . . . Hacking | -11 -10 -10 -8 --------- Run | Yrd Mat Sub Mat Machines Accessed 4 | . 3 1 . Terminals 2 | . 2 . . Fabricators . | . . . . Repair Stations . | . . . . Recycling Units 1 | . 1 . . Scanalyzers . | . . . . Garrison Access . | . . . . Total Hacks 7 | . 3 4 . Successful 6 | . 2 4 . Failed 1 | . 1 . . Catastrophic . | . . . . Database Lockouts . | . . . . Manual . | . . . . Terminals 2 | . 2 . . Fabricators . | . . . . Repair Stations . | . . . . Recycling Units 1 | . 1 . . Scanalyzers . | . . . . Garrison Access . | . . . . Terminal Hacks 5 | . 1 4 . Record 4 | . . 4 . Prototype ID Bank 1 | . 1 . . Fabricator Hacks . | . . . . Repair Station Hacks . | . . . . Recycling Unit Hacks 1 | . 1 . . Report Inventory 1 | . 1 . . Scanalyzer . | . . . . Garrison Access Hacks . | . . . . Unauthorized Hacks . | . . . . Terminals . | . . . . Fabricators . | . . . . Repair Stations . | . . . . Recycling Units . | . . . . Scanalyzers . | . . . . Garrison Access . | . . . . Data Cores Recovered 1 | . . . 1 Used . | . . . . Hacking Detections 1 | . 1 . . Full Trace Events . | . . . . Feedback Events . | . . . . Feedback Blocked . | . . . . Robot Schematics Acquired . | . . . . Robots Built . | . . . . Authchips . | . . . . Time . | . . . . Total Robot Build Rating . | . . . . Part Schematics Acquired . | . . . . Parts Built . | . . . . Authchips . | . . . . Time . | . . . . Total Part Build Rating . | . . . . Parts Repaired . | . . . . Time . | . . . . Parts Recycled . | . . . . Recycled Matter . | . . . . Retrieved Matter . | . . . . Retrieved Components . | . . . . Parts Scanalyzed . | . . . . Part Schematics Acquired . | . . . . Parts Damaged . | . . . . Bothacking | -11 -10 -10 -8 ------------ Run | Yrd Mat Sub Mat Used RIF Installer . | . . . . Robots Hacked . | . . . . Non-combat . | . . . . Combat . | . . . . Robot Hacks Applied . | . . . . Relay Couplers Released . | . . . . Fabnet Peak Effective % . | . . . . Robots Rewired . | . . . . Allies Hacked . | . . . . Hacks Repelled . | . . . . Allies | -11 -10 -10 -8 -------- Run | Yrd Mat Sub Mat Total Allies . | . . . . Largest Group . | . . . . Highest-Rated Group . | . . . . Highest-Rated Ally . | . . . . Total Orders . | . . . . Ally Attacks . | . . . . Total Damage . | . . . . Kills . | . . . . Allies Corrupted . | . . . . Allies Melted . | . . . . Intel | -11 -10 -10 -8 ------- Run | Yrd Mat Sub Mat Robot Analysis Total . | . . . . Derelict Logs Recovered . | . . . . Drone Launches . | . . . . Drone Recoveries . | . . . . Exploration | -11 -10 -10 -8 ------------- Run | Yrd Mat Sub Mat Turns Passed 1706 | 86 510 366 744 Spaces Moved 1056 | 54 365 301 336 Core 18 | 13 . . 5 Treads . | . . . . Legs 1038 | 41 365 301 331 Wheels . | . . . . Hover . | . . . . Flight . | . . . . Fastest Speed 50 | 50 120 120 100 Average Speed 131 | 106 120 120 159 Slowest Speed 190 | 120 120 120 190 Overloaded Moves . | . . . . Propulsion Burnouts . | . . . . Robots Hopped . | . . . . Cave-ins Triggered . | . . . . Exploration Rate (%) 30 | 5 54 15 46 Regions Visited 3 Branch Regions 1 Pre-discovered Areas 1 | . . 1 . Known Exits Taken . | . . . . Unknown Exits Taken 3 | 1 1 1 . Scrap Searched . | . . . . Spaces Dug 4 | . 4 . . Terrain Destroyed 95 | . 48 9 38 Melee . | . . . . Projectile . | . . . . AOE 95 | . 48 9 38 Terrain Rammed . | . . . . Walls Destroyed . | . . . . Machines Disabled . | . . . . Actions | -11 -10 -10 -8 --------- Run | Yrd Mat Sub Mat Total 1220 | 74 397 302 447 Wait 3 | . . . 3 Move 1053 | 53 364 300 336 Hop . | . . . . Pick Up 28 | 9 4 . 15 Fast Attach 3 | . . . 3 Attach 21 | 7 . . 14 Detach 1 | . . . 1 Swap 20 | 1 9 . 10 Drop 6 | . . . 6 Fire 83 | 4 20 2 57 Melee . | . . . . Ram . | . . . . Kick 2 | . . . 2 Crush . | . . . . Escape Stasis . | . . . . Rewire . | . . . . Trap . | . . . . Miscellaneous . | . . . . Route ------- -11/Scrapyard -10/Materials (discovered 3 exits: [*Mat] / [*Min] / *Sub) -10/Subcaves -8/Materials History --------- Turn | Location | Event 30 | -11/Scrapyard | Discovered new exit (range 12) 87 | -11/Scrapyard | Entered Materials 264 | -10/Materials | Discovered new exit (range 6) 306 | -10/Materials | Build established: Mutant 374 | -10/Materials | Discovered new exit (range 8) 486 | -10/Materials | Discovered new exit (range 13) 597 | -10/Materials | Entered Subcaves 657 | -10/Subcaves | Shifting Twisted Machinery released Piercing Trap 670 | -10/Subcaves | Shifting Twisted Machinery released Sub. Monowheel 685 | -10/Subcaves | A swath of the cavern ceiling suddenly collapsed 705 | -10/Subcaves | Discovered new exit (range 9) 810 | -10/Subcaves | Visited Clippyterm 813 | -10/Subcaves | Learned location of Extension (-4) 963 | -10/Subcaves | Entered Materials 963 | -8/Materials | Evolved 4 slots: Power x1, Propulsion x1, Utility x1, Weapon x1 1537 | -8/Materials | Garrison activated, responded to threat 1662 | -8/Materials | Core integrity fell below 50% 1693 | -8/Materials | Core integrity fell below 20% 1707 | -8/Materials | Destroyed by X-57 Shotgunner with Shotgun Last Messages --------------- 01662_ X-57 Shotgunner knocked back. 01664_ G-47 Trooper knocked back. 01664_ X-57 Shotgunner knocked back. 01665_ K-01 Serf collects debris. 01666_ Dropped Med. Storage Unit. 01668_ K-01 Serf collects debris. 01672_ Flak Cannon destroyed. 01675_ K-01 Serf collects debris. 01675_ M-13 Machinist repairs X-57 Shotgunner. 01677_ M-13 Machinist repairs G-47 Trooper. 01681_ Aluminum Leg destroyed. 01683_ ALERT: Suspicious intruders detected, dispatching Specialist reinforcements to area. 01692_ Lgt. Ion Engine destroyed. 01695_ X-57 Shotgunner suffers critical hit (Destroy). 01695_ Destroyed Lgt. Nuclear Core. 01698_ X-57 Shotgunner destroyed. 01698_ Imp. Cooling System destroyed. 01707_ Sml. Laser destroyed. Map ----- +----------------------------------------------------+ | | | | | | | | | | | | | | | | | | | | | | | | | | | | | | | | | | | | | | | | | | | | | ?????????????????????????????????????????????????? | | ???????????????????########??????????????????????? | | ???????????????????# x !#??????????????????????? | | ???????????????????# """ @#??????????????????????? | | ???????????????????# """ !#??????????????????????? | | ???????????????????# """Yg############???????????? | | ???????????????????# mm """ #???????????? | | ???????????????????# "T" # "R" #???????????? | | ???????????????????######## " " ####????????? | | ??####???????? #????????? | | ?? ???????????????######### #????????? | | ? ?????????H???????# # #????????? | | ?? ?????????????????# + +????????? | | ###+########??????????# # ####????????? | | #??????????# # #???????????? | | "" """ """ #??????????# [ " " #???????????? | | "" """ """ #??????????# [![ "" #???????????? | | "" """ """ #? ##########/### "" #####???????? | | ## **#???????? | | ## ! **#???????? | | ########+#### ^ !!#???????? | | ???????# #??# ####^^ ######/ ### !!#???????? | | ??###??# #??# #??# ^""" #/ #?[[#???????? | | ###T#### #??# #??# """ # #??[#???????? | | # #??# #??# """ # #???????????? | | # ####+#### #??# # #???????????? | | # # ## #??# # " #???????????? | | # # ## ####+##### !! #???????????? | +----------------------------------------------------+ Best States ------------- Heat Dissipation 58 Energy Generation 25 Energy Capacity 350 Matter Stores 287 Matter Capacity 300 Sight Range 16 Robot Scan Range 14 Terrain Scan Range 16 Terrain Scan Density 85 Evasion (%) 55 Item Schematics ----------------- None Robot Schematics ------------------ None Fabricated ------------ Nothing Alien Tech Used ----------------- None Achievements -------------- None Challenges ------------ None Game ------ Seed DamperColdNeutralizer Manual? 0 Play Time 00:24:55 Cumulative 70.5 hours Start 2024.12.03 @ 21:16:34 End 2024.12.03 @ 21:41:20 Sessions 1 Manual Loads 0 Difficulty Rogue Special Mode None Game No. 54 Rogue 40 Adventurer 14 Explorer 0 Win Type - Total 0 Types 0/0/0/0/0/0/0/0/0 Lore% 18 Gallery% 37 Achievement% 28 Wizard Run 0 Options --------- Layout 1 ASCII 0 Keyboard 0 Movement Mouse Keybinds 0 Fullscreen 0 Font 18/SmallcapsGlow Map View 50x35 Zoom Use 0% Tactical HUD 1 Map Filters NONE Filters NONE Steam 1 RUN: c9ceb79c-896b-4bb1-aa14-00709dbceec8